Cogmind - Beta 15 @@@ ROGUE MODE // 2025.06.27 @ 20:09:34 Player: Demo Result: Destroyed by B-86 Titan with Hardcell Cannon Performance ------------- Evolutions (6) 3000 Regions Visited (13) 2600 Robots Destroyed (337) 1685 Value Destroyed (12937) 12937 Prototype IDs (34) 680 Alien Tech Used (0) 0 Bonus (8579) 8579 TOTAL SCORE: 29481 Bonus ------- Pacifist 200 Triggered High Security 500 High Alert Combat Kills 7579 Aligned with FarCom 300 Cogmind --------- Core Integrity 0/1150 Matter 125/300 Energy 18/100 System Corruption 46% Temperature Cool (9) Movement Core (150) Ox2 Location -4/Extension Parts ------- > --- POWER (3) -------- (None) > --- PROPULSION (4) --- Armored Wheel > --- UTILITY (7) ------ Advanced Heat Sink Improved Hacking Suite > --- WEAPON (5) ------- Field Lobotomy Kit > --- INVENTORY (5) ---- Improved Thermal Shield Improved Plasma Cutter Phasing Sabre Peak State ------------ > --- POWER ------------ Reinforced Fission Core Light Antimatter Reactor Light Quantum Reactor > --- PROPULSION ------- Armored Medium Treads Advanced Medium Treads Improved Heavy Treads > --- UTILITY ---------- Advanced Cooling System Huge Storage Unit Advanced Sensor Array Advanced Signal Interpreter Improved Transmission Jammer Advanced ECM Suite Improved Thermal Shield > --- WEAPON ----------- Field Laser Phase Gun KE Penetrator Advanced KE Penetrator Heavy Gauss Cannon > --- INVENTORY -------- Light Nuclear Core Improved Treads Wheel Compact Wheel Armored Wheel Advanced Heat Sink Energy Well High-capacity Matter Pod Improved Recalibrator Advanced EMP Blaster Field Lobotomy Kit Improved Plasma Cutter [Rating: 117] Favorites ----------- Power F-cell Engine Engine F-cell Engine Power Core Reinforced Fission Core Reactor Light Antimatter Reactor Propulsion Wheel Treads Armored Treads Wheel Wheel Hover Unit Cooled Airjet Flight Unit Field Propulsion Array Utility Huge Storage Unit Device Weapon Cycler Storage Huge Storage Unit Processor Improved Targeting Computer Hackware Improved Hacking Suite Protection Hardened Medium Armor Plating Weapon Advanced EMP Blaster Energy Gun Particle Gun Energy Cannon Improved EM Pulse Cannon Ballistic Gun XL Autogun Subcomponent Ballistic Cannon Heavy Gauss Cannon Launcher Advanced EMP Blaster Special Weapon Field Lobotomy Kit Impact Weapon Flail Slashing Weapon Phasing Sabre Piercing Weapon Spear Build | -11 -10 -10 -9 -9 -9 -8 -8 -8 -7 -6 -5 -4 -4 ------- Run | Yrd Mat Min Mat Min Exi Min Mat Sto Fac Fac Fac Fac Ext Slots Evolved 12 | . . . 2 . . . 2 . 2 2 2 2 . Power 2 | . . . . . . . . . . 1 1 . . Propulsion 2 | . . . . . . . 2 . . . . . . Utility 5 | . . . . . . . . . 2 1 . 2 . Weapon 3 | . . . 2 . . . . . . . 1 . . Parts Attached 175 | 2 . . 3 7 1 4 2 1 59 7 34 41 14 Power 23 | . . . . . . 1 . . 3 1 8 8 2 Engine 7 | . . . . . . . . . 2 1 4 . . Core 11 | . . . . . . 1 . . 1 . 3 5 1 Reactor 5 | . . . . . . . . . . . 1 3 1 Propulsion 44 | 2 . . 3 . . 2 2 . 20 1 4 7 3 Treads 9 | 2 . . 2 . . . . . 1 . . 3 1 Leg . | . . . . . . . . . . . . . . Wheel 32 | . . . . . . 2 2 . 18 1 4 4 1 Hover 1 | . . . . . . . . . 1 . . . . Flight 2 | . . . 1 . . . . . . . . . 1 Utility 55 | . . . . 3 1 . . 1 14 4 11 16 5 Device 28 | . . . . 1 . . . . 7 1 7 8 4 Storage 4 | . . . . 1 1 . . . 1 . 1 . . Processor 8 | . . . . 1 . . . 1 3 1 1 1 . Hackware 1 | . . . . . . . . . . . . . 1 Protection 14 | . . . . . . . . . 3 2 2 7 . Artifact . | . . . . . . . . . . . . . . Weapon 53 | . . . . 4 . 1 . . 22 1 11 10 4 Energy Gun 18 | . . . . 1 . . . . 5 1 8 3 . Energy Cannon 3 | . . . . 1 . . . . . . 2 . . Ballistic Gun 17 | . . . . . . 1 . . 6 . 1 6 3 Ballistic Cannon 1 | . . . . . . . . . . . . 1 . Launcher 10 | . . . . 1 . . . . 9 . . . . Special Weapon 1 | . . . . . . . . . 1 . . . . Impact Weapon 1 | . . . . . . . . . 1 . . . . Slashing Weapon 1 | . . . . . . . . . . . . . 1 Piercing Weapon 1 | . . . . 1 . . . . . . . . . Special Melee Weapon . | . . . . . . . . . . . . . . Unidentified Prototypes 11 | . . . 1 . . . . . 6 1 2 1 . Corrupted Parts 14 | . . . . . . 1 . . . . 9 . 4 System Corruption 93 | . . . . . . 3 . . . . 52 . 38 Parts Lost 94 | . . . 1 . . . . . 20 2 20 34 17 Power 15 | . . . . . . . . . 2 . 4 5 4 Propulsion 28 | . . . 1 . . . . . 12 . 4 6 5 Utility 22 | . . . . . . . . . 1 1 3 13 4 Weapon 29 | . . . . . . . . . 5 1 9 10 4 Highest Loss Streak 14 | . . . 1 . . . . . 5 1 7 14 6 To Critical Strikes 1 | . . . . . . . . . . . . . 1 Average Backups 18 | . . . 1 7 8 12 19 19 22 23 23 17 9 Power . | . . . . . . . 3 1 . 1 1 . . Propulsion 2 | . . . 1 2 1 3 5 4 3 1 1 2 3 Utility 7 | . . . . 4 4 5 6 9 8 7 9 8 3 Weapon 6 | . . . . 1 1 1 3 3 8 13 9 3 . Tool/Special . | . . . . . . . . . . . . . . Unused Backups 45 | . . . . 1 3 6 1 2 14 . 9 4 5 Power 3 | . . . . . . 1 . 2 . . . . . Propulsion 8 | . . . . 1 . 1 . . 1 . 4 . 1 Utility 21 | . . . . . 1 3 1 . 8 . 2 3 3 Weapon 12 | . . . . . 2 1 . . 5 . 3 1 . Tool/Special 1 | . . . . . . . . . . . . . 1 Average Slot Usage (%) 83 | . 28 28 13 68 88 63 66 72 91 91 87 87 63 Engine 4 | . . . . . . . . . 5 6 12 2 . Core 2 | . . . . . . 8 9 9 1 6 3 5 6 Treads 6 | . 28 28 8 22 22 8 . . 3 . . 6 7 Wheel 15 | . . . . . . 12 30 36 25 20 14 10 . Device 8 | . . . . 1 . . . . 5 8 8 23 21 Storage 6 | . . . . 9 11 11 9 9 7 6 5 5 3 Processor 8 | . . . . 10 11 11 9 9 13 6 2 . 5 Protection 3 | . . . . . . . . . 2 9 9 3 . Energy Gun 5 | . . . . 5 11 . . . 4 . 7 6 4 Energy Cannon 1 | . . . . 5 11 . . . . . 1 2 . Ballistic Gun 8 | . . . . . . 9 9 9 13 . 7 9 5 Launcher 5 | . . . . 8 11 . . . 5 24 8 . 2 Piercing Weapon 1 | . . . . 5 11 . . . . . . . . Peak Build Rating 117 | 2 2 2 6 25 29 50 52 52 67 58 79 117 109 Average Rating 54 | 1 2 2 3 17 27 46 51 51 51 55 66 95 70 On Entrance 35 | . 2 2 2 6 25 29 50 52 52 43 58 73 109 Naked Turns 1 | . . . 1 . . . . . . . . . . Heaviest Build 188 | . . . . 27 57 60 60 60 123 133 167 188 163 Greatest Support 132 | 3 3 3 5 40 40 40 40 40 52 48 54 132 132 Greatest Overweight (x) 10 | . . . . . 1 5 2 1 7 2 4 10 1 Average Overweight (x) 1 | . . . . . . 1 1 1 1 2 2 2 . Largest Inventory Capacity 25 | 5 5 5 5 10 20 20 20 20 25 25 25 25 25 Average Capacity 21 | 5 5 5 5 9 11 20 20 20 23 25 25 25 17 Most Carried 25 | . . . 2 10 10 20 20 20 25 24 25 25 13 Average Carried 18 | . . . 1 7 9 12 19 19 23 23 24 17 8 Final Capacity 25 | 5 5 5 5 10 20 20 20 20 25 25 25 25 5 Final Carried 24 | . . . 2 10 10 20 20 20 24 24 23 13 3 Class Distribution -------------------- 26% | Scavenger-Bomber 15% | Scavenger-Skirmisher 15% | Scavenger-Gunner 14% | Bomber 9% | Scavenger-Tank 8% | Mutant 5% | Skirmisher Dominant Class ---------------- Mutant | -10/Mines Mutant | -9/Materials Bomber | -9/Mines Bomber | -9/Exiles Skirmisher | -8/Mines Scavenger-Skirmisher | -8/Materials Scavenger-Bomber | -8/Storage Scavenger-Gunner | -7/Factory Tank | -6/Factory Scavenger-Tank | -5/Factory Scavenger-Bomber | -4/Factory Scavenger-Bomber | -4/Extension Resources | -11 -10 -10 -9 -9 -9 -8 -8 -8 -7 -6 -5 -4 -4 ----------- Run | Yrd Mat Min Mat Min Exi Min Mat Sto Fac Fac Fac Fac Ext Matter Collected 8167 | . . . . 380 . 284 . 434 3905 192 1031 1842 99 Remotely 16 | . . . . . . . . . 16 . . . . Salvage Created 16078 | . . . . 79 . 379 . 828 7739 299 2980 3639 135 Parts 745 | . . . . 7 . 15 . 38 388 16 118 157 6 Haulers Intercepted 7 | . . . . . . . . 2 4 . . 1 . Recyclers Shooed 7 | . . . . . . . . . 5 . 1 1 . Parts Field Recycled . | . . . . . . . . . . . . . . Retrieved Matter . | . . . . . . . . . . . . . . Parts Self-Destructed . | . . . . . . . . . . . . . . Prevented . | . . . . . . . . . . . . . . Kills | -11 -10 -10 -9 -9 -9 -8 -8 -8 -7 -6 -5 -4 -4 ------- Run | Yrd Mat Min Mat Min Exi Min Mat Sto Fac Fac Fac Fac Ext Combat Hostiles Destroyed 225 | . . . . 1 . 5 . 14 113 8 36 46 2 Guns 103 | . . . . . . 3 . 14 45 . 8 32 1 Cannons 9 | . . . . . . . . . . . 1 8 . AOE 89 | . . . . 1 . 2 . . 55 7 17 6 1 Classes Destroyed 21 | . . . . 3 . 4 . 2 8 2 1 1 . Worker 43 | . . . . 1 . 1 . . 28 . 5 8 . Builder 32 | . . . . . . 2 . . 14 1 4 11 . Tunneler 5 | . . . . 1 . . . . 3 . . 1 . Hauler 7 | . . . . . . . . 2 4 . . 1 . Recycler 20 | . . . . . . 1 . . 11 . 4 4 . Mechanic 4 | . . . . . . . . . 3 . 1 . . Operator 3 | . . . . . . . . . 1 . 2 . . Watcher 7 | . . . . . . . . . 5 . . 2 . Swarmer 32 | . . . . . . . . . 10 3 9 10 . Grunt 100 | . . . . 1 . 3 . 12 54 . 14 16 . Brawler 11 | . . . . . . 1 . 1 7 . . 2 . Duelist 10 | . . . . . . 1 . . 8 . . 1 . Protector 5 | . . . . . . . . . 4 . 1 . . Sentry 23 | . . . . . . . . 1 12 2 3 5 . Demolisher 2 | . . . . . . . . . . 2 . . . Specialist 2 | . . . . . . . . . . . 2 . . Hunter 22 | . . . . . . . . . 8 . 4 8 2 Programmer 13 | . . . . . . . . . 9 . 2 2 . Heavy 3 | . . . . . . . . . 1 . 1 1 . Behemoth 1 | . . . . . . . . . . . . 1 . Assembled 1 | . . . . . . . . . . 1 . . . Best Kill Streak 23 | . . . . 2 . 3 . 7 22 4 13 23 2 Combat Bots Only 12 | . . . . 1 . 3 . 7 12 4 10 10 2 Max Kills in Single Turn 6 | . . . . 2 . 2 . 1 5 4 4 6 1 Gunslinging 1 | . . . . . . . . . 1 . . . . Exploded 4 | . . . . 1 . 1 . . 4 4 3 4 1 Melee . | . . . . . . . . . . . . . . Uniques/NPCs Destroyed . | . . . . . . . . . . . . . . Combat | -11 -10 -10 -9 -9 -9 -8 -8 -8 -7 -6 -5 -4 -4 -------- Run | Yrd Mat Min Mat Min Exi Min Mat Sto Fac Fac Fac Fac Ext Hostile Shots Fired 1291 | . . . 64 11 . 19 . 20 453 12 169 362 181 Missed 466 | . . . 30 . . 5 . 5 176 7 63 117 63 Hits 825 | . . . 34 11 . 14 . 15 277 5 106 245 118 Melee 20 | . . . . . . 2 . . 4 . . 14 . Projectile 805 | . . . 34 11 . 12 . 15 273 5 106 231 118 Critical Strikes 35 | . . . . . . 2 . 1 6 . 5 15 6 Part Disruptions 1 | . . . . . . . . . 1 . . . . Damage Taken 14894 | . . . 393 136 . 242 . 233 3765 205 2339 5390 2191 Core 2287 | . . . 283 35 . 65 . 44 569 4 96 444 747 Absorbed by Shields 33 | . . . . . . . . . 10 . . . 23 Redirected to Shielding 267 | . . . . . . . . . . . 34 233 . Ignored by Resistances 344 | . . . . . . . . . . . . 242 102 Regen/Repaired (Parts) 620 | . . . . . . . 7 . 185 . 339 89 . Core Remaining (%) 71 | 100 . 100 . . . 4 . 92 18 99 90 . . Volleys Fired 490 | . . . . 2 . 16 1 32 242 7 73 105 12 Largest 5 | . . . . 1 . 1 1 1 4 4 5 5 4 Hottest 341 | . . . . 33 . 60 60 60 195 147 325 341 235 Shots Fired 1368 | . . . . 2 . 16 1 32 626 23 197 436 35 Gun 1063 | . . . . . . 14 1 32 510 . 137 345 24 Cannon 109 | . . . . . . . . . . . 14 91 4 Launcher 194 | . . . . 2 . 2 . . 115 23 45 . 7 Special 2 | . . . . . . . . . 1 . 1 . . Kinetic 801 | . . . . . . 14 1 32 422 . 33 290 9 Thermal 230 | . . . . . . . . . 88 . 12 111 19 Explosive 30 | . . . . . . . . . 27 3 . . . Electromagnetic 305 | . . . . 2 . 2 . . 88 20 151 35 7 Robot Hit Streak 16 | . . . . 2 . 5 . 12 16 5 11 15 5 Robot Miss Streak 9 | . . . . . . 4 . 4 7 1 9 5 5 Penetration Max 2 | . . . . . . . . . . . . 2 . Secondary Targets 13 | . . . . . . . . . 7 . 2 4 . Max Gunslinging Chain 2 | . . . . . . . . . 2 . 1 1 . Shots Hit Robots 802 | . . . . 4 . 15 . 32 358 12 121 245 15 Core Hits 674 | . . . . 3 . 14 . 28 355 19 105 144 6 Critical Kills 4 | . . . . . . . . . . . . 4 . Critical Parts Destroyed 7 | . . . . . . . . . . . . 7 . Critical Strikes 27 | . . . . . . . . . 2 . 3 21 1 Burn 4 | . . . . . . . . . 2 . . 2 . Destroy 14 | . . . . . . . . . . . . 14 . Blast 6 | . . . . . . . . . . . . 5 1 Corrupt 3 | . . . . . . . . . . . 3 . . Melee Attacks 7 | . . . . 2 . . . . . . 5 . . Impact 5 | . . . . . . . . . . . 5 . . Slashing . | . . . . . . . . . . . . . . Piercing 2 | . . . . 2 . . . . . . . . . Sneak Attacks 2 | . . . . 2 . . . . . . . . . Combat Hostiles . | . . . . . . . . . . . . . . Follow-up Attacks . | . . . . . . . . . . . . . . Damage Inflicted 37606 | . . . . 275 . 967 . 1802 18520 1326 4942 9380 394 Guns 17161 | . . . . . . 720 . 1802 6895 . 2004 5594 146 Cannons 2041 | . . . . . . . . . . . 199 1756 86 Explosions 18262 | . . . . 133 . 247 . . 11625 1326 2739 2030 162 Melee 142 | . . . . 142 . . . . . . . . . Ramming . | . . . . . . . . . . . . . . Kinetic 14377 | . . . . . . 720 . 1802 6022 . 530 5202 101 Thermal 5479 | . . . . 8 . 147 . . 2515 41 460 2177 131 Explosive 5200 | . . . . . . . . . 3219 620 . 1361 . Electromagnetic 12408 | . . . . 125 . 100 . . 6764 665 3952 640 162 Impact . | . . . . . . . . . . . . . . Slashing . | . . . . . . . . . . . . . . Piercing 142 | . . . . 142 . . . . . . . . . Highest Corruption 68 | . . . . . . 3 . . 12 1 68 8 46 Average Corruption 11 | . . . . . . 3 . . 7 1 21 5 32 Corruption Purged . | . . . . . . . . . . . . . . Corruption Blocked . | . . . . . . . . . . . . . . Effects 175 | . . . . . . 6 . . 61 . 69 17 22 Message Errors 44 | . . . . . . . . . 18 . 18 4 4 Matter Fused 30 | . . . . . . 2 . . 11 . 11 3 3 Heat Flow Errors 16 | . . . . . . 3 . . 3 . 5 2 3 Energy Discharges 14 | . . . . . . 1 . . 2 . 7 2 2 Parts Rejected 3 | . . . . . . . . . . . 1 2 . Parts Fused 3 | . . . . . . . . . 2 . 1 . . Data Loss (minor) 25 | . . . . . . . . . 10 . 12 1 2 Data Loss (major) 8 | . . . . . . . . . 4 . 3 1 . Misfires 7 | . . . . . . . . . 3 . 2 1 1 Alerts 2 | . . . . . . . . . 1 . 1 . . Misdirections 7 | . . . . . . . . . 1 . . . 6 Weapon Failures 16 | . . . . . . . . . 6 . 8 1 1 Overload Shots . | . . . . . . . . . . . . . . Overflow Damage 685 | . . . . 32 . . . . 345 57 66 185 . Projectiles 1 | . . . . . . . . . . . . 1 . Explosions 652 | . . . . . . . . . 345 57 66 184 . Melee 32 | . . . . 32 . . . . . . . . . Knockbacks 9 | . . . . . . . . . . . . 8 1 Impact . | . . . . . . . . . . . . . . Kinetic 7 | . . . . . . . . . . . . 6 1 Secondary 2 | . . . . . . . . . . . . 2 . Self-Inflicted Damage 906 | . . . . 15 . 3 . . 430 156 148 59 95 Shots 41 | . . . . 2 . 1 . . 21 5 8 1 3 Rammed . | . . . . . . . . . . . . . . Targets Rammed . | . . . . . . . . . . . . . . Kicked . | . . . . . . . . . . . . . . Crushed . | . . . . . . . . . . . . . . Highest Temperature 518 | . . . . . . 168 36 322 417 169 518 276 313 Average Temperature 101 | . . . . . . 61 24 143 96 77 123 67 133 Received Heat Transfer 2334 | . . . 96 66 . 144 . 135 783 6 324 612 168 Effects 18 | . . . . . . . . 1 7 . 10 . . Energy Bleed 2 | . . . . . . . . 1 1 . . . . Interference 11 | . . . . . . . . . 5 . 6 . . Short Circuit 2 | . . . . . . . . . 1 . 1 . . Damage (major) 3 | . . . . . . . . . . . 3 . . Siege Activations . | . . . . . . . . . . . . . . Martial Activations . | . . . . . . . . . . . . . . Shielding Activations . | . . . . . . . . . . . . . . Robots Disrupted 2 | . . . . . . . . . 2 . . . . Combat Hostiles 2 | . . . . . . . . . 2 . . . . Robots Corrupted 25 | . . . . . . . . . 12 1 12 . . Combat Hostiles 23 | . . . . . . . . . 12 1 10 . . Parts Fried 92 | . . . . . . . . . 30 4 56 1 1 Impact Corruptions . | . . . . . . . . . . . . . . Robots Melted 1 | . . . . . . . . . 1 . . . . Combat Hostiles 1 | . . . . . . . . . 1 . . . . Parts Melted 9 | . . . . . . . . . 5 . 1 3 . Heat Transferred 8222 | . . . . 50 . 200 . . 3818 50 570 3349 185 Parts Sabotaged . | . . . . . . . . . . . . . . Parts Stolen . | . . . . . . . . . . . . . . Parts Stripped . | . . . . . . . . . . . . . . Power Chain Reactions 38 | . . . . 1 . . . . 23 1 11 1 1 Alert | -11 -10 -10 -9 -9 -9 -8 -8 -8 -7 -6 -5 -4 -4 ------- Run | Yrd Mat Min Mat Min Exi Min Mat Sto Fac Fac Fac Fac Ext Maximum Alert Level 5 | . . . . . . . . 1 5 5 4 5 3 Low Security (%) 27 | 100 100 100 100 100 . 100 100 66 18 . . . . Level 1 1 | . . . . . . . . 33 2 . . . . Level 2 10 | . . . . . . . . . 13 . . 35 . Level 3 20 | . . . . . . . . . 5 . 73 12 100 Level 4 15 | . . . . . . . . . 22 . 26 11 . Level 5 20 | . . . . . . . . . 27 100 . 41 . High Security 3 | . . . . . . . . . 10 . . . . Max Security . | . . . . . . . . . . . . . . Peak Influence 3718 | . . . 120 46 . 192 60 319 3718 1850 1400 1900 931 Initial 1816 | . . . . 46 . . 59 20 140 1816 896 682 916 Average 979 | . . . 34 3 . 84 48 139 1322 1744 1035 1187 851 Influence Increases 9158 | . . . 150 34 . 272 31 389 4449 344 1234 2011 244 Destroy 0b10 Robot/C 4400 | . . . . 20 . 100 . 280 2180 140 700 920 60 Destroy 0b10 Robot/NC 635 | . . . . 10 . 20 . 10 365 10 85 135 . Destroy Leader 978 | . . . . . . 20 . 44 498 40 160 196 20 Successful Hack 44 | . . . . . . . . 2 14 . . . 28 Disable Machine 1200 | . . . . . . 90 30 15 600 75 90 285 15 Anti-Garrison Action 400 | . . . . . . . . . 400 . . . . Destroy Structure 1036 | . . . . 4 . 27 1 23 332 79 94 460 16 Partial Spotted 30 | . . . 30 . . . . . . . . . . Lose Combat Pursuer 435 | . . . 120 . . 15 . 15 60 . 105 15 105 Influence Decreases 8348 | . . . 30 154 . 120 133 130 1050 2222 1670 1534 1305 Entered New Map 4859 | . . . . 74 . . 93 30 169 1892 934 712 955 Time Decay 2339 | . . . 20 80 . 120 40 100 671 160 526 482 140 Lost Part 940 | . . . 10 . . . . . 200 20 200 340 170 Lost Ally 60 | . . . . . . . . . 10 . 10 . 40 Purge Threat 150 | . . . . . . . . . . 150 . . . Squads Dispatched 74 | . . . 1 1 . . 1 2 42 1 13 8 5 Investigation 15 | . . . . 1 . . 1 1 4 . 4 1 3 Extermination 9 | . . . . . . . . . 6 1 1 1 . Reinforcement 21 | . . . 1 . . . . 1 11 . 3 4 1 Assault 17 | . . . . . . . . . 13 . 1 2 1 Garrison 12 | . . . . . . . . . 8 . 4 . . Intercept . | . . . . . . . . . . . . . . Searches Triggered . | . . . . . . . . . . . . . . Construction Impeded 9 | . . . . . . . . 1 6 . . 2 . Haulers Reinforced 3 | . . . . . . . . . 2 . . 1 . Active Scanning Responses . | . . . . . . . . . . . . . . Cargo Convoy Interrupts . | . . . . . . . . . . . . . . Stealth | -11 -10 -10 -9 -9 -9 -8 -8 -8 -7 -6 -5 -4 -4 --------- Run | Yrd Mat Min Mat Min Exi Min Mat Sto Fac Fac Fac Fac Ext Distress Signals 15 | . . . 1 . . . . 1 5 . 1 5 2 Communications Jammed 82 | . . . . . . . . . . . . 81 1 Distress Signals 82 | . . . . . . . . . . . . 81 1 Times Spotted 333 | . . . 19 4 . 6 . 17 148 8 45 63 23 Peak Tracking Total 13 | . . . 13 3 . 3 . 7 8 3 9 8 11 Tactical Retreats 19 | . . . 2 . . 1 . 1 4 . 4 3 4 Traps | -11 -10 -10 -9 -9 -9 -8 -8 -8 -7 -6 -5 -4 -4 ------- Run | Yrd Mat Min Mat Min Exi Min Mat Sto Fac Fac Fac Fac Ext Traps Triggered 27 | . . . . . . . . 1 13 1 10 1 1 Indirectly 6 | . . . . . . . . . . 1 5 . . Trap Hack Attempts . | . . . . . . . . . . . . . . Triggered . | . . . . . . . . . . . . . . Disarmed . | . . . . . . . . . . . . . . Reprogrammed . | . . . . . . . . . . . . . . Reused . | . . . . . . . . . . . . . . Traps Extracted . | . . . . . . . . . . . . . . Installed . | . . . . . . . . . . . . . . Triggered . | . . . . . . . . . . . . . . Machines | -11 -10 -10 -9 -9 -9 -8 -8 -8 -7 -6 -5 -4 -4 ---------- Run | Yrd Mat Min Mat Min Exi Min Mat Sto Fac Fac Fac Fac Ext Machines Disabled 82 | . . . . . . 6 2 1 40 5 6 19 3 Max in Single Turn 8 | . . . . . . 3 2 1 8 3 3 2 1 Garrison Access 2 | . . . . . . . . . 2 . . . . Machines Repaired . | . . . . . . . . . . . . . . Machines Dismantled . | . . . . . . . . . . . . . . Machines Sabotaged . | . . . . . . . . . . . . . . Overloaded Fab Kills . | . . . . . . . . . . . . . . Hacking | -11 -10 -10 -9 -9 -9 -8 -8 -8 -7 -6 -5 -4 -4 --------- Run | Yrd Mat Min Mat Min Exi Min Mat Sto Fac Fac Fac Fac Ext Machines Accessed 23 | . . . . 1 2 . 1 3 7 1 2 1 5 Terminals 11 | . . . . . . . . 2 2 1 1 . 5 Fabricators 2 | . . . . . . . . . 2 . . . . Repair Stations 4 | . . . . . . . 1 1 . . 1 1 . Recycling Units . | . . . . . . . . . . . . . . Scanalyzers . | . . . . . . . . . . . . . . Garrison Access 3 | . . . . . . . . . 3 . . . . Total Hacks 45 | . . . . 1 2 . 1 5 15 4 3 1 13 Successful 18 | . . . . 1 2 . 1 3 4 1 1 1 4 Failed 27 | . . . . . . . . 2 11 3 2 . 9 Catastrophic 5 | . . . . . . . . . 1 . 1 . 3 Database Lockouts . | . . . . . . . . . . . . . . Manual 17 | . . . . . 1 . 1 1 12 . 1 1 . Terminals 28 | . . . . . . . . 4 5 4 2 . 13 Fabricators 4 | . . . . . . . . . 4 . . . . Repair Stations 4 | . . . . . . . 1 1 . . 1 1 . Recycling Units . | . . . . . . . . . . . . . . Scanalyzers . | . . . . . . . . . . . . . . Garrison Access 6 | . . . . . . . . . 6 . . . . Terminal Hacks 10 | . . . . 1 2 . . 2 . 1 . . 4 Record 1 | . . . . . 1 . . . . . . . . Open Door 6 | . . . . 1 . . . 2 . . . . 3 Unreport Threat 1 | . . . . . . . . . . 1 . . . Locate Traps 1 | . . . . . . . . . . . . . 1 Proto ID Catalog 1 | . . . . . 1 . . . . . . . . Fabricator Hacks . | . . . . . . . . . . . . . . Repair Station Hacks . | . . . . . . . . . . . . . . Recycling Unit Hacks . | . . . . . . . . . . . . . . Scanalyzer . | . . . . . . . . . . . . . . Garrison Access Hacks . | . . . . . . . . . . . . . . Unauthorized Hacks 8 | . . . . . . . 1 1 4 . 1 1 . Terminals . | . . . . . . . . . . . . . . Fabricators 2 | . . . . . . . . . 2 . . . . Liberate 2 | . . . . . . . . . 2 . . . . Repair Stations 4 | . . . . . . . 1 1 . . 1 1 . Patch 4 | . . . . . . . 1 1 . . 1 1 . Recycling Units . | . . . . . . . . . . . . . . Scanalyzers . | . . . . . . . . . . . . . . Garrison Access 2 | . . . . . . . . . 2 . . . . Jam 2 | . . . . . . . . . 2 . . . . Data Cores Recovered 1 | . . . . . . . . . 1 . . . . Used . | . . . . . . . . . . . . . . Hacking Detections 14 | . . . . . . . . 2 6 1 1 . 4 Full Trace Events 6 | . . . . . . . . . 2 . 1 . 3 Feedback Events 1 | . . . . . . . . . . . 1 . . Corruption 1 | . . . . . . . . . . . 1 . . Feedback Blocked . | . . . . . . . . . . . . . . Robot Schematics Acquired . | . . . . . . . . . . . . . . Robots Built . | . . . . . . . . . . . . . . Authchips . | . . . . . . . . . . . . . . Time . | . . . . . . . . . . . . . . Total Robot Build Rating . | . . . . . . . . . . . . . . Part Schematics Acquired . | . . . . . . . . . . . . . . Parts Built . | . . . . . . . . . . . . . . Authchips . | . . . . . . . . . . . . . . Time . | . . . . . . . . . . . . . . Total Part Build Rating . | . . . . . . . . . . . . . . Parts Repaired . | . . . . . . . . . . . . . . Time . | . . . . . . . . . . . . . . Parts Recycled . | . . . . . . . . . . . . . . Recycled Matter . | . . . . . . . . . . . . . . Retrieved Matter . | . . . . . . . . . . . . . . Retrieved Components . | . . . . . . . . . . . . . . Parts Scanalyzed . | . . . . . . . . . . . . . . Part Schematics Acquired . | . . . . . . . . . . . . . . Parts Damaged . | . . . . . . . . . . . . . . Bothacking | -11 -10 -10 -9 -9 -9 -8 -8 -8 -7 -6 -5 -4 -4 ------------ Run | Yrd Mat Min Mat Min Exi Min Mat Sto Fac Fac Fac Fac Ext Used RIF Installer . | . . . . . . . . . . . . . . Robots Hacked . | . . . . . . . . . . . . . . Non-combat . | . . . . . . . . . . . . . . Combat . | . . . . . . . . . . . . . . Robot Hacks Applied . | . . . . . . . . . . . . . . Relay Couplers Released 3 | . . . . . . . . . 3 . . . . Programmers 3 | . . . . . . . . . 3 . . . . Fabnet Peak Effective % . | . . . . . . . . . . . . . . Robots Rewired . | . . . . . . . . . . . . . . Allies Hacked 2 | . . . . . . . . . . . 2 . . Hacks Repelled . | . . . . . . . . . . . . . . Allies | -11 -10 -10 -9 -9 -9 -8 -8 -8 -7 -6 -5 -4 -4 -------- Run | Yrd Mat Min Mat Min Exi Min Mat Sto Fac Fac Fac Fac Ext Total Allies 6 | . . . . . . . . . 1 . 1 . 4 Largest Group 2 | . . . . . . . . . 1 . 1 . 2 Highest-Rated Group 75 | . . . . . . . . . 19 . 23 . 75 Highest-Rated Ally 46 | . . . . . . . . . 19 . 23 . 46 Total Orders 2 | . . . . . . . . . 1 . 1 . . AID 2 | . . . . . . . . . 1 . 1 . . Ally Attacks 17 | . . . . . . . . . . . . . 17 Total Damage 379 | . . . . . . . . . . . . . 379 Kills 1 | . . . . . . . . . . . . . 1 Allies Corrupted . | . . . . . . . . . . . . . . Allies Melted . | . . . . . . . . . . . . . . Field Lobotomies 2 | . . . . . . . . . 1 . 1 . . Intel | -11 -10 -10 -9 -9 -9 -8 -8 -8 -7 -6 -5 -4 -4 ------- Run | Yrd Mat Min Mat Min Exi Min Mat Sto Fac Fac Fac Fac Ext Active Infowar (turns) 2959 | . . . . 92 . . . . 1430 . 204 1000 233 Sensors 1905 | . . . . . . . . . 1430 . . 247 228 Structural 296 | . . . . 92 . . . . . . 204 . . Jamming 1158 | . . . . . . . . . . . . 1000 158 ECM 280 | . . . . . . . . . . . . 228 52 Robot Analysis Total . | . . . . . . . . . . . . . . Derelict Logs Recovered 1 | . . . . 1 . . . . . . . . . Drone Launches . | . . . . . . . . . . . . . . Drone Recoveries . | . . . . . . . . . . . . . . Exploration | -11 -10 -10 -9 -9 -9 -8 -8 -8 -7 -6 -5 -4 -4 ------------- Run | Yrd Mat Min Mat Min Exi Min Mat Sto Fac Fac Fac Fac Ext Turns Passed 8675 | 14 5 18 65 1068 460 271 82 205 3148 322 1470 1256 291 Spaces Moved 5408 | 22 9 35 135 684 250 144 73 164 2069 248 834 490 251 Core 264 | 22 9 35 30 132 . . . . . . . . 36 Treads 1046 | . . . . 552 250 29 . . . . . 158 57 Legs . | . . . . . . . . . . . . . . Wheels 3835 | . . . . . . 115 73 164 2069 248 834 332 . Hover . | . . . . . . . . . . . . . . Flight 263 | . . . 105 . . . . . . . . . 158 Fastest Speed 40 | 50 50 50 40 50 170 110 95 95 95 116 116 130 40 Average Speed 124 | 50 50 50 42 146 181 134 98 95 113 116 129 166 86 Slowest Speed 317 | 50 50 50 60 170 250 250 110 95 205 116 150 317 240 Overloaded Moves . | . . . . . . . . . . . . . . Propulsion Burnouts . | . . . . . . . . . . . . . . Robots Hopped 7 | . . . 3 . . . . . . . . . 4 Potential Cave-ins . | . . . . . . . . . . . . . . Cave-ins Triggered . | . . . . . . . . . . . . . . Exploration Rate (%) 31 | 3 5 15 24 97 60 32 9 46 68 8 21 15 44 Regions Visited 13 Branch Regions 6 Pre-discovered Areas 1 | . . . . . 1 . . . . . . . . Known Exits Taken 2 | . . . . . . . . . 1 . . 1 . Unknown Exits Taken 11 | 1 1 1 1 1 1 1 1 1 . 1 1 . . Scrap Searched 2 | . . . . 1 . 1 . . . . . . . Spaces Dug 48 | . . . . . . . . . 10 32 2 4 . Terrain Destroyed 902 | . . . . 4 . 30 . 17 447 87 54 253 10 Melee 2 | . . . . . . . . . . . 2 . . Projectile 157 | . . . . . . 14 . 17 10 . . 114 2 AOE 743 | . . . . 4 . 16 . . 437 87 52 139 8 Terrain Rammed . | . . . . . . . . . . . . . . Walls Destroyed . | . . . . . . . . . . . . . . Machines Disabled . | . . . . . . . . . . . . . . Actions | -11 -10 -10 -9 -9 -9 -8 -8 -8 -7 -6 -5 -4 -4 --------- Run | Yrd Mat Min Mat Min Exi Min Mat Sto Fac Fac Fac Fac Ext Total 6702 | 23 8 34 138 741 260 223 83 214 2605 268 1096 712 297 Wait 232 | . . . . 35 . 26 4 12 67 . 78 6 4 Move 5381 | 21 8 34 128 683 249 143 72 163 2068 247 833 489 243 Hop 7 | . . . 3 . . . . . . . . . 4 Pick Up 129 | . . . 2 10 3 21 3 3 42 2 23 20 . Fast Attach 107 | 2 . . 3 6 . 3 . . 31 4 24 23 11 Attach 83 | . . . . 1 . 1 2 . 22 3 14 33 7 Detach 20 | . . . . . . . . . 5 1 4 8 2 Swap 67 | . . . . . 1 . . 1 39 1 16 9 . Drop 137 | . . . 2 2 7 13 1 3 50 2 25 19 13 Fire 490 | . . . . 2 . 16 1 32 242 7 73 105 12 Melee 7 | . . . . 2 . . . . . . 5 . . Ram . | . . . . . . . . . . . . . . Kick . | . . . . . . . . . . . . . . Crush . | . . . . . . . . . . . . . . Escape Stasis 40 | . . . . . . . . . 39 . . . 1 Rewire 2 | . . . . . . . . . . 1 1 . . Trap . | . . . . . . . . . . . . . . Miscellaneous . | . . . . . . . . . . . . . . Route ------- -11/Scrapyard -10/Materials -10/Mines -9/Materials -9/Mines (discovered 4 exits: *Mat x2 / *Exi / [*Zio]) -9/Exiles -8/Mines -8/Materials -8/Storage -7/Factory (discovered 3 exits: *Fac x3) -6/Factory -5/Factory -4/Factory -4/Extension History --------- Turn | Location | Event 2 | -11/Scrapyard | Discovered new exit (range 16) 15 | -11/Scrapyard | Entered Materials 16 | -10/Materials | Met a group of wandering Federalists 17 | -10/Materials | Discovered new exit (range 4) 20 | -10/Materials | Entered Mines 20 | -10/Mines | Accompanied by 5 allies 21 | -10/Mines | Assembled infested the area 33 | -10/Mines | Discovered new exit (range 9) 38 | -10/Mines | Entered Materials 38 | -9/Materials | Evolved 2 slots: Weapon x2 88 | -9/Materials | Core integrity fell below 50% 98 | -9/Materials | Discovered new exit (range 10) 103 | -9/Materials | Entered Mines 110 | -9/Mines | Met a Derelict bent on vengeance 124 | -9/Mines | Joined a pair of Derelicts in attacking an 0b10 outpost 316 | -9/Mines | Build established: Mutant 400 | -9/Mines | Discovered new exit (range 8) 553 | -9/Mines | Discovered new exit (range 8) 575 | -9/Mines | Met a Derelict shopkeep closing up shop 753 | -9/Mines | A Derelict revealed a hidden shortcut to a safe place 927 | -9/Mines | Build established: Bomber 963 | -9/Mines | Learned Materials terminal intel 1109 | -9/Mines | Deemed a non-threat by the Exiles lab entrance 1111 | -9/Mines | Discovered new exit (range 5) 1134 | -9/Mines | Found a damaged Exp. Sensor Array with a note attached 1140 | -9/Mines | Found Prototype Device 1171 | -9/Mines | Entered Exiles 1219 | -9/Exiles | Met 8R-AWN 1245 | -9/Exiles | Met EX-HEX 1292 | -9/Exiles | Met EX-BIN 1311 | -9/Exiles | Aligned with FarCom system 1313 | -9/Exiles | Given EX-Vault access code 1358 | -9/Exiles | Opened EX-Vault 1372 | -9/Exiles | Found XL Autogun Array 1385 | -9/Exiles | Found Field Lobotomy Kit 1426 | -9/Exiles | Warned to stay clear of 0b10 Research branches 1478 | -9/Exiles | Met EX-DEC 1487 | -9/Exiles | Learned location of Zion (-7) 1604 | -9/Exiles | Discovered new exit (range 12) 1631 | -9/Exiles | Stole two prototypes: XL Autogun Array, Field Lobotomy Kit 1631 | -9/Exiles | Entered Mines 1632 | -8/Mines | Core integrity fell below 20% 1850 | -8/Mines | Found DCF Scrap (14 items) 1899 | -8/Mines | Discovered new exit (range 3) 1902 | -8/Mines | Entered Materials 1902 | -8/Materials | Evolved 2 slots: Propulsion x2 1903 | -8/Materials | Loaded intel: 12 terminal locations 1965 | -8/Materials | Discovered new exit (range 8) 1984 | -8/Materials | Entered Storage 1986 | -8/Storage | FarCom data flow suspended 2116 | -8/Storage | Destroyed 7 combat bots 2185 | -8/Storage | Discovered new exit (range 6) 2189 | -8/Storage | Entered Factory 2189 | -7/Factory | Evolved 2 slots: Utility x2 2506 | -7/Factory | Discovered new exit (range 15) 2535 | -7/Factory | Build established: Scavenger-Bomber 2541 | -7/Factory | Identified exit to Factory 2551 | -7/Factory | Identified Exp. Sensor Array 2840 | -7/Factory | Build established: Scavenger-Skirmisher 2989 | -7/Factory | First assault squad dispatched 3309 | -7/Factory | Garrison activated, responded to threat 3349 | -7/Factory | Destroyed 11 combat bots 3719 | -7/Factory | Discovered exit to Factory (range 15) 4132 | -7/Factory | Garrison activated, responded to threat 4164 | -7/Factory | Destroyed 9 combat bots 4173 | -7/Factory | Lost 4 parts (2n2w) 4214 | -7/Factory | Core integrity fell below 50% 4456 | -7/Factory | Build established: Scavenger-Gunner 4868 | -7/Factory | System corruption reached 10% 4888 | -7/Factory | Garrison activated, responded to threat 4999 | -7/Factory | Lost 5 parts (1p1n3w) 5012 | -7/Factory | High security lockdown imminent 5019 | -7/Factory | Assimilated M-28 Smith with FLK Orb 5092 | -7/Factory | High security lockdown engaged 5100 | -7/Factory | Discovered exit to Factory (range 15) 5139 | -7/Factory | Destroyed 8 combat bots 5220 | -7/Factory | Destroyed 8 combat bots 5242 | -7/Factory | Core integrity fell below 20% 5283 | -7/Factory | Destroyed 12 combat bots 5337 | -7/Factory | Destroyed 10 combat bots 5337 | -7/Factory | Entered another Factory area 5337 | -6/Factory | Evolved 2 slots: Power x1, Utility x1 5637 | -6/Factory | Discovered new exit (range 15) 5659 | -6/Factory | Entered another Factory area 5659 | -5/Factory | Evolved 2 slots: Power x1, Weapon x1 5803 | -5/Factory | Destroyed 9 combat bots 5811 | -5/Factory | Lost 3 parts (1p1n1w) 5825 | -5/Factory | Found Launcher Loader 5885 | -5/Factory | System corruption reached 10% 5975 | -5/Factory | Build established: Scavenger-Tank 6462 | -5/Factory | Assimilated M-28 Smith with FLK Orb 6755 | -5/Factory | Garrison activated, responded to threat 6859 | -5/Factory | First assault squad dispatched 7038 | -5/Factory | Discovered new exit (range 16) 7053 | -5/Factory | System corruption reached 30% 7064 | -5/Factory | Lost 7 parts (3p1n3w) 7065 | -5/Factory | Destroyed 10 combat bots 7112 | -5/Factory | Garrison activated, responded to threat 7129 | -5/Factory | Entered another Factory area 7129 | -4/Factory | Evolved 2 slots: Utility x2 7210 | -4/Factory | Build established: Scavenger-Bomber 7284 | -4/Factory | Lost 6 parts (1n3u2w) 7637 | -4/Factory | Spotted B-86 Titan 7810 | -4/Factory | Destroyed 10 combat bots 7836 | -4/Factory | Lost 14 parts (3p5n1u5w) 7860 | -4/Factory | Destroyed B-86 Titan 7879 | -4/Factory | First assault squad dispatched 7890 | -4/Factory | Lost 6 parts (5u1w) 8067 | -4/Factory | Discovered new exit (range 15) 8130 | -4/Factory | Lost 5 parts (2p3u) 8382 | -4/Factory | Identified exit to Extension 8385 | -4/Factory | Entered Extension 8387 | -4/Extension | Disrupted transfer network 8484 | -4/Extension | System corruption reached 10% 8485 | -4/Extension | Lost 6 parts (2p1n3w) 8492 | -4/Extension | System corruption reached 30% 8512 | -4/Extension | Core integrity fell below 50% 8616 | -4/Extension | Lost 4 parts (2n1u1w) 8616 | -4/Extension | Rescued a captive Derelict 8635 | -4/Extension | First assault squad dispatched 8643 | -4/Extension | Rescued a captive Derelict 8643 | -4/Extension | Rescued a captive Derelict 8647 | -4/Extension | Rescued a captive Derelict 8647 | -4/Extension | Rescued a captive Derelict 8667 | -4/Extension | Spotted B-86 Titan 8669 | -4/Extension | Spotted B-86 Titan 8674 | -4/Extension | Core integrity fell below 20% 8676 | -4/Extension | Destroyed by B-86 Titan with Hardcell Cannon Last Messages --------------- 08670_ Slug penetrates Wall. 08670_ Penetrated by Slug. 08670_ Imp. Fusion Compressor destroyed. 08670_ Knocked back. 08671_ Slug penetrates H-77 Assassin. 08672_ Field Propulsion Array destroyed. 08672_ Dropped Adv. Cooling System. 08672_ Dropped Adv. Cryofiber Web. 08673_ Slug penetrates R-10 Processor. 08673_ Penetrated by Slug. 08673_ Imp. Phase Shifter destroyed. 08673_ Adv. Signal Interpreter destroyed. 08673_ Critical hit (Blast). 08673_ Knocked back. 08673_ Slug penetrates Sealed Heavy Doors. 08674_ B-86 Titan activates siege mode. 08675_ Penetrated by Slug. 08675_ Slug penetrates Reinforced Barrier. 08676_ Slug penetrates Sealed Heavy Doors. 08676_ Penetrated by Slug. Map ----- +----------------------------------------------------+ | ????# "T" ??# #????????????????????????????? | | ??? ??# #????????????????????????????? | | ##?## ! ??# """#????????????????????????????? | | #???# ?# T"#????????????????????????????? | | #????#" "##?# """#????????????????????????????? | | ??????"Y"???# #????????????????????????????? | | ????????????# #????????????????????????????? | | ???????????##+##### #????????????????????????????? | | ???????????# ??# #????????????????????????????? | | ???????????# # #????????????????????????????? | | ???????????# = [ + #????????????????????????????? | | ???????????# # #????????????????????????????? | | ???????????# [ # #????????????????????????????? | | ???????????# # #????????????????????????????? | | ???????????######## #??????????#?????????????????? | | ??????????????????# #####?###? #?????????????????? | | ????????????????###R##; ## ;## ###???????????????? | | ????????????????#"" "" "" ""#???????????????? | | ????????????????# Y" Y " " #???????????????? | | ????????????????#% % h #???????????????? | | ????????????????# u #???????????????? | | ???????????###### ! #######?????????? | | ???????? ! h ????????? | | ??????? ????????? | | ??????? % ????????? | | ??????? @ ????????? | | ??????? w ????????? | | ???????###"###### BB % BB #######?????????? | | ?????????#??????# BB BB #???????????????? | | ????????????????# #???????????????? | | ????????????????# #???????????????? | | ????????????????# #???????????????? | | ????????????????######T#"""##;####???????????????? | | ?????????????????????##??????##??????????????????? | | ?????????????????????????????????????????????????? | | | | | | | | | | | | | | | | | | | | | | | | | | | | | | | +----------------------------------------------------+ Best States ------------- Heat Dissipation 112 Energy Generation 57 Energy Capacity 935 Matter Stores 300 Matter Capacity 300 Sight Range 16 Robot Scan Range 20 Terrain Scan Density 10 ECM Strength 2 Jamming Range 14 Power Amplification 20 Base Temperature (-) 200 Armor Coverage 600 Resistance: KI 30 Resistance: TH 25 Propulsion Shielding 66 Utility Shielding 33 Weapon Cycling 15 Phase Shifting 10 Evasion (%) 72 Targeting Accuracy 8 Launcher Accuracy 20 Recoil Reduction 4 Energy Filtering 30 Kinecelleration 40 Offensive Hacking 12 Item Schematics ----------------- None Robot Schematics ------------------ None Fabricated ------------ Nothing Repaired ---------- Nothing Alien Tech Used ----------------- None Achievements -------------- None Challenges ------------ None Game ------ Seed InsulatedDecoyAirjet Manual? 0 Play Time 01:12:00 Cumulative 307.6 hours Start 2025.06.27 @ 19:01:34 End 2025.06.27 @ 20:09:34 Sessions 1 Manual Loads 0 Difficulty Rogue Special Mode None Game No. 272 Rogue 272 Adventurer 0 Explorer 0 Win Type - Total 2 Types 1/1/0/0/0/0/0/0/0/0 Lore% 77 Gallery% 80 Achievement% 72 Wizard Run 0 Options --------- Layout 1 ASCII 0 Keyboard 0 Movement Numpad Keybinds 0 Fullscreen 1 Font 24/Smallcaps Map View 50x35 Zoom Use 0% Tactical HUD 1 Map Filters NONE Filters NONE Steam 1 RUN: 248a1acc-627e-489e-9eb8-46e7fc0cb33a